fUST/lending_fUST_20250521
["ID","MTS","AMOUNT","RATE_DAILY","PERIOD"]
[361805021,1747819837303,-500.0,0.00019178,2]
[361805022,1747819837313,-500.0,0.00019178,2]
[361805023,1747819837322,-500.0,0.00019178,2]
[361805024,1747819837333,-500.0,0.00019178,2]
[361805025,1747819837343,-500.0,0.00019178,2]
[361805026,1747819837354,-500.0,0.00019178,2]
[361805027,1747819837364,-500.0,0.00019178,2]
[361805028,1747819837374,-500.0,0.00019178,2]
[361805029,1747819837384,-547.93118545,0.00019178,2]
[361805030,1747819837394,-500.0,0.00019178,2]
[361805031,1747819837404,-500.0,0.00019178,2]
[361805032,1747819837414,-500.0,0.00019178,2]
[361805033,1747819837424,-500.0,0.00019178,2]
[361805034,1747819837434,-500.0,0.00019178,2]
[361805035,1747819837443,-500.0,0.00019178,2]
[361805036,1747819837453,-500.0,0.00019178,2]
[361805037,1747819837463,-500.0,0.00019178,2]
[361805038,1747819837474,-500.0,0.00019178,2]
[361805039,1747819837483,-500.0,0.00019178,2]
[361805040,1747819837494,-500.0,0.00019178,2]
[361805041,1747819837503,-500.0,0.00019178,2]
[361805042,1747819837513,-500.0,0.00019178,2]
[361805043,1747819837523,-500.0,0.00019178,2]
[361805044,1747819837532,-500.0,0.00019178,2]
[361805045,1747819837542,-500.0,0.00019178,2]
[361805046,1747819837552,-500.0,0.00019178,2]
[361805047,1747819837561,-500.0,0.00019178,2]
[361805048,1747819837571,-500.0,0.00019178,2]
[361805049,1747819837581,-500.0,0.00019178,2]
[361805050,1747819837592,-500.0,0.00019178,2]
[361805051,1747819837602,-500.0,0.00019178,2]
[361805052,1747819837612,-500.0,0.00019178,2]
[361805053,1747819837622,-500.0,0.00019178,2]
[361805054,1747819837632,-500.0,0.00019178,2]
[361805055,1747819837642,-500.0,0.00019178,2]
[361805056,1747819837652,-500.0,0.00019178,2]
[361805057,1747819837662,-500.0,0.00019178,2]
[361805058,1747819837673,-250.0,0.00019178,2]
[361805059,1747819837683,-500.0,0.00019178,2]
[361805060,1747819837693,-500.0,0.00019178,2]
[361805061,1747819837703,-500.0,0.00019178,2]
[361805062,1747819837713,-500.0,0.00019178,2]
[361805063,1747819837724,-500.0,0.00019178,2]
[361805064,1747819837734,-500.0,0.00019178,2]
[361805065,1747819837743,-500.0,0.00019178,2]
[361805066,1747819837753,-500.0,0.00019188,2]
[361805067,1747819837762,-151.0,0.00019205,2]
[361805068,1747819837772,-500.0,0.00019205,2]
[361805069,1747819837781,-151.0,0.00019233,2]
[361805070,1747819837791,-510.01934482,0.00019233,2]
[361805071,1747819837801,-1432.91993632,0.00019249,2]
[361805072,1747819837812,-253.71811751,0.0001926,2]
[361805073,1747819837822,-379.10619914,0.00019383,2]
[361805074,1747819837831,-420.0,0.00019639,2]
[361805075,1747819837841,-379.10619914,0.00019693,2]
[361805076,1747819837851,-75222.97395535,0.0002,2]
[361805078,1747819838434,-529.0,0.00018685,2]
[361805079,1747819838444,-529.0,0.00018712,2]
[361805080,1747819838454,-529.0,0.00018739,2]
[361805081,1747819838464,-529.0,0.00018767,2]
[361805082,1747819838474,-529.0,0.00018794,2]
[361805083,1747819838484,-529.0,0.00018822,2]
[361805085,1747819838494,-529.0,0.00018849,2]
[361805086,1747819838503,-529.0,0.00018876,2]
[361805087,1747819838513,-529.0,0.00018904,2]
[361805089,1747819838522,-223.69140695,0.00018931,2]
[361805091,1747819838534,-305.30859305,0.00018931,2]
[361805093,1747819838544,-76.52264464,0.00018959,2]
[361805369,1747819843659,-519.83149545,0.00018769,2]
[361805371,1747819843672,-4480.16850455,0.00018769,2]
[361805373,1747819843681,-452.47735536,0.00018959,2]
[361805375,1747819843690,-529.0,0.00018986,2]
[361805377,1747819843700,-529.0,0.00019013,2]
[361805379,1747819843709,-529.0,0.00019041,2]
[361805382,1747819843719,-547.12183274,0.00019068,2]
[361805384,1747819843729,-182.64383175,0.00019233,2]
[361805387,1747819843739,-12009.50480199,0.0002,2]
[361805389,1747819843751,-1351.5434118,0.0002,2]
[361805391,1747819843762,-4206.21136439,0.0002,2]
[361805393,1747819843773,-519.1,0.0002,2]
[361805645,1747819846516,-1000.0,0.0002,2]
[361805663,1747819846679,-21499.49813134,0.0002,2]
[361806040,1747821031781,-1620.401511,0.00013426,2]
[361806041,1747821031794,-1267.36140284,0.00013426,2]
[361806043,1747821031887,-653.58100193,0.00013426,2]
[361806044,1747821031900,-374.05366051,0.00013426,2]
[361806092,1747821037613,-1084.60242372,0.00013426,2]
[361806094,1747821037623,-273.841762,0.00013699,2]
[361806096,1747821037633,-300.671032,0.000178,2]
[361806098,1747821037643,-161.407979,0.00017811,2]
[361806100,1747821037653,-619.45861303,0.000179,2]
[361806102,1747821037662,-161.407979,0.000179,2]
[361806104,1747821037672,-377.1205741,0.00017942,2]
[361806106,1747821037681,-619.45861296,0.00018176,2]
[361806108,1747821037691,-1200.0,0.00018451,2]
[361806110,1747821037701,-619.45861296,0.00018452,2]
[361806112,1747821037710,-217.83737559,0.00018628,2]
[361806114,1747821037720,-300.0,0.00018707,2]
[361806116,1747821037729,-300.0,0.00018708,2]
[361806118,1747821037742,-300.0,0.00018708,2]
[361806120,1747821037752,-229.0,0.00018708,2]
[361806122,1747821037761,-190.86725685,0.00018709,2]
[361806124,1747821037771,-153.98072892,0.00018709,2]
[361806126,1747821037781,-500.0,0.00018709,2]
[361806128,1747821037790,-197.0584592,0.00018709,2]
[361806130,1747821037800,-500.0,0.00018709,2]
[361806132,1747821037810,-24900.0,0.0001871,2]
[361806134,1747821037819,-619.45861296,0.00018728,2]
[361806136,1747821037828,-619.45861296,0.00019003,2]
[361806138,1747821037838,-400.0,0.00019178,2]
[361806140,1747821037848,-619.45861296,0.00019279,2]
[361806142,1747821037857,-160.0,0.00019429,2]
[361806144,1747821037867,-619.45861296,0.00019555,2]
[361806146,1747821037878,-160.0,0.00019697,2]
[361806148,1747821037888,-422.71322487,0.00019697,2]
[361806150,1747821037898,-160.0,0.00019697,2]
[361806152,1747821037908,-160.0,0.00019702,2]
[361806154,1747821037918,-894.64583333,0.00019702,2]
[361806156,1747821037928,-1372.37331324,0.00019702,2]
[361806158,1747821037940,-3010.88555315,0.00019702,2]
[361806186,1747821039793,-1460.20207003,0.00019505,2]
[361806187,1747821039851,-3539.79792997,0.00019505,2]
[361806188,1747821039861,-5230.86910679,0.00019702,2]
[361806189,1747821039873,-873.412745,0.00019702,2]
[361806212,1747821043614,-2155.46125081,0.00019702,2]
[361806214,1747821043624,-160.0,0.00019702,2]
[361806216,1747821043634,-212.41679935,0.00019703,2]
[361806219,1747821043644,-579.44841629,0.00019721,2]
[361806222,1747821043655,-619.45861296,0.00019831,2]
[361806225,1747821043665,-579.44841629,0.0001984,2]
[361806228,1747821043675,-913.48645942,0.000199,2]
[361806230,1747821043684,-282.69366948,0.0001996,2]
[361806232,1747821043696,-541.65,0.0001996,2]
[361806235,1747821043712,-57.7852641,0.0001996,2]
[361806238,1747821043722,-176.902,0.00019999,2]
[361806240,1747821043731,-302.23518352,0.00019999,2]
[361806248,1747821043785,-0.59789345,0.00019999,2]
[361806250,1747821043794,-500.0,0.00019999,2]
[361806254,1747821043803,-351.46620959,0.00019999,2]
[361806256,1747821043815,-148.53379041,0.00019999,2]
[361806258,1747821043825,-234.52652109,0.00019999,2]
[361806260,1747821043834,-600.0,0.00019999,2]
[361806262,1747821043843,-84.71568702,0.00019999,2]
[361806266,1747821043863,-415.28431298,0.00019999,2]
[361806267,1747821043872,-244.24681396,0.00019999,2]
[361806269,1747821043881,-174.1840987,0.00019999,2]
[361806271,1747821043891,-431.71402864,0.00019999,2]
[361806273,1747821043900,-431.71402864,0.00019999,2]
[361806275,1747821043909,-93954.84119936,0.0002,2]
[361806471,1747821045711,-3399.65160852,0.0002,2]
[361806474,1747821045724,-7683.29982198,0.0002,2]
[361806867,1747822118918,-152.30692355,0.0001342,2]
[361806870,1747822183211,-273.5632073,0.00013286,2]
[361806871,1747822184743,-153.58659792,0.00013286,2]
[361806872,1747822188576,-200.48582334,0.00013286,2]
[361806873,1747822192364,-200.48582334,0.00013286,2]
[361806874,1747822196609,-266.60017646,0.00013286,2]
[361806875,1747822199974,-165.33881666,0.00013286,2]
[361806876,1747822205601,-169.66225518,0.00013286,2]
[361806888,1747822232024,-561.01946318,0.00013286,2]
[361806891,1747822232037,-466.53666222,0.00013286,2]
[361806895,1747822232049,-2542.7211744,0.00013286,2]
[361806897,1747822232058,-719.71639257,0.0001342,2]
[361806901,1747822232069,-133.62347978,0.00013699,2]
[361806903,1747822232082,-153.17637722,0.00013699,2]
[361806905,1747822232092,-160.0,0.00018416,2]
[361806907,1747822232103,-160.0,0.00018416,2]
[361806909,1747822232114,-185.82797222,0.00018682,2]
[361806911,1747822232123,-160.0,0.00018682,2]
[361806913,1747822232134,-12638.53552368,0.00018682,2]
[361806915,1747822232144,-1200.0,0.00018683,2]
[361806917,1747822232154,-300.0,0.00018683,2]
[361806919,1747822232166,-212.41679935,0.00018684,2]
[361806921,1747822232175,-422.71322487,0.00018684,2]
[361806923,1747822232184,-160.0,0.00018684,2]
[361806925,1747822232194,-300.0,0.00018689,2]
[361806927,1747822232204,-630.60173109,0.000189,2]
[361806929,1747822232214,-1903.67020866,0.00019,2]
[361806931,1747822232226,-3500.0,0.00019,2]
[361806933,1747822232238,-467.09929999,0.00019,2]
[361807018,1747822237783,-250.0,0.00017722,2]
[361807020,1747822237793,-500.0,0.00018999,2]
[361807022,1747822237804,-354.88479275,0.00018999,2]
[361807024,1747822237813,-500.0,0.00018999,2]
[361807026,1747822237823,-352.52236175,0.00018999,2]
[361807028,1747822237833,-438.5347716,0.00018999,2]
[361807030,1747822237846,-61.4652284,0.00018999,2]
[361807032,1747822237856,-500.0,0.00018999,2]
[361807034,1747822237865,-500.0,0.00018999,2]
[361807036,1747822237874,-98.97668245,0.00018999,2]
[361807038,1747822237886,-401.02331755,0.00018999,2]
[361807040,1747822237896,-500.0,0.00018999,2]
[361807042,1747822237906,-162.31717157,0.00018999,2]
[361807045,1747822237918,-337.68282843,0.00018999,2]
[361807046,1747822237927,-384.40675115,0.00018999,2]
[361807048,1747822237937,-417.01287872,0.00018999,2]
[361807050,1747822237951,-704.11424704,0.00019,2]
[361807053,1747822237962,-6381.23555731,0.00019,2]
[361807076,1747822240259,-16.7970896,0.00017545,2]
[361807117,1747822243032,-4983.2029104,0.00017545,2]
[361807119,1747822243042,-522.2582952,0.000189,2]
[361807121,1747822243052,-1057.62287516,0.00019,2]
[361807130,1747822243140,-94949.6711216,0.00019,2]
[361807633,1747822671115,500.0,0.0002,120]
[361807634,1747822684792,500.0,0.0002,120]
[361807635,1747822698117,500.0,0.00019,30]
[361807636,1747822710256,500.0,0.00019,30]
[361807637,1747822722958,1000.0,0.00013,2]
[361807638,1747822731624,1000.0,0.00013,2]
[361807639,1747822741436,500.0,0.00019,30]
[361807640,1747822748759,500.0,0.0002,120]
[361807964,1747823436113,-5000.0,0.00013562,2]
[361807965,1747823436123,-298.190486,0.00013699,2]
[361807966,1747823436132,-233.301695,0.00017647,2]
[361807967,1747823436142,-469.4126017,0.00018207,2]
[361807968,1747823436156,-160.0,0.00018259,2]
[361807969,1747823436167,-1200.0,0.00018451,2]
[361807970,1747823436178,-160.0,0.0001875,2]
[361807971,1747823436188,-422.71322487,0.0001875,2]
[361807972,1747823436197,-894.64583333,0.0001875,2]
[361807973,1747823436208,-160.0,0.0001875,2]
[361807974,1747823436218,-189.0,0.00018751,2]
[361807975,1747823436227,-300.0,0.00018751,2]
[361807976,1747823436237,-212.41679935,0.00018751,2]
[361807977,1747823436247,-12643.00196899,0.00018752,2]
[361807978,1747823436257,-649.57186558,0.00018759,2]
[361807979,1747823436267,-180.47378646,0.00018899,2]
[361807980,1747823436277,-902.73955988,0.000189,2]
[361807982,1747823436287,-150.0,0.000189,2]
[361807983,1747823436297,-393.85186011,0.000189,2]
[361807984,1747823436306,-500.0,0.00018903,2]
[361807985,1747823436316,-500.0,0.00018999,2]
[361807986,1747823436325,-500.0,0.00018999,2]
[361807987,1747823436336,-500.0,0.00018999,2]
[361807988,1747823436349,-500.0,0.00018999,2]
[361807989,1747823436359,-333.69468427,0.00018999,2]
[361807990,1747823436369,-500.0,0.00018999,2]
[361807991,1747823436379,-500.0,0.00018999,2]
[361807992,1747823436390,-500.0,0.00018999,2]
[361807993,1747823436400,-500.0,0.00018999,2]
[361807994,1747823436410,-217.56035257,0.00018999,2]
[361807995,1747823436420,-598.41935492,0.00018999,2]
[361807996,1747823436430,-500.0,0.00018999,2]
[361807997,1747823436441,-446.76565322,0.00018999,2]
[361807998,1747823436450,-500.0,0.00018999,2]
[361807999,1747823436460,-485.06917469,0.00018999,2]
[361808000,1747823436469,-13240.89607026,0.00019,2]
[361808001,1747823436479,-745.71107443,0.00019,3]
[361808002,1747823436493,-59.96777174,0.00019,3]
[361808003,1747823436505,-1025.0,0.00019,2]
[361808004,1747823436515,-30100.94855328,0.00019,2]
[361808005,1747823436527,-531.7,0.00019,2]
[361808006,1747823436539,-314.54692683,0.00019,2]
[361808007,1747823436555,-1200.0,0.00019,2]
[361808008,1747823436567,-49068.30690218,0.00019,2]
[361808036,1747823438095,-4669.4780075,0.00019,2]
[361808042,1747823438150,-7082.877669,0.00019,2]
[361808045,1747823438163,-528.78757581,0.00019,2]
[361808047,1747823438176,-501.87708855,0.00019,2]
[361808049,1747823438187,-821.1406638,0.00019,2]
[361808051,1747823438203,-9249.06800389,0.00019,2]
[361808053,1747823438215,-4652.89057922,0.00019,2]
[361808055,1747823438226,-26684.40315374,0.00019,2]
[361808188,1747823440277,-3759.98228627,0.0001881,2]
[361808204,1747823443218,-1240.01771373,0.0001881,2]
[361808205,1747823443229,-89162.63875355,0.00019,2]
[361808209,1747823443274,-25134.16962402,0.00019,2]
[361808352,1747823446362,-7983.21637377,0.00019,2]
[361830471,1747824632372,-2247.49666288,0.00013426,2]
[361830477,1747824632425,-1597.50615178,0.00013426,2]
[361830527,1747824638255,-1154.99718534,0.00013426,2]
[361830530,1747824638266,-294.859741,0.00013699,2]
[361830532,1747824638276,-730.6943011,0.00017211,2]
[361830534,1747824638286,-570.6737259,0.00017377,2]
[361830536,1747824638295,-240.0,0.000179,2]
[361830538,1747824638305,-677.27828559,0.000179,2]
[361830540,1747824638315,-1254.33830371,0.00017901,2]
[361830542,1747824638328,-23645.66169629,0.00017901,2]
[361830544,1747824638338,-677.27828535,0.00018176,2]
[361830546,1747824638348,-160.0,0.00018238,2]
[361830549,1747824638358,-677.27828535,0.00018452,2]
[361830552,1747824638368,-677.27828535,0.00018728,2]
[361830554,1747824638378,-12643.00196899,0.00018778,2]
[361830556,1747824638392,-160.0,0.00018778,2]
[361830558,1747824638402,-422.71322487,0.00018778,2]
[361830560,1747824638412,-894.64583333,0.0001878,2]
[361830562,1747824638422,-160.0,0.0001878,2]
[361830564,1747824638431,-212.41679935,0.0001878,2]
[361830566,1747824638441,-150.0,0.000189,2]
[361830568,1747824638451,-160.76326196,0.00018999,2]
[361830570,1747824638461,-272.74891524,0.00018999,2]
[361830572,1747824638471,-500.0,0.00018999,2]
[361830574,1747824638481,-625.96607603,0.00018999,2]
[361830576,1747824638493,-500.0,0.00018999,2]
[361830578,1747824638502,-383.53341446,0.00018999,2]
[361830580,1747824638512,-34150.28547304,0.00019,2]
[361830582,1747824638522,-166.74386414,0.00019,2]
[361830584,1747824638531,-176.166,0.00019003,2]
[361830586,1747824638542,-677.27828535,0.00019003,2]
[361830588,1747824638552,-1500.0,0.00019178,2]
[361830590,1747824638561,-244.84025852,0.00019209,2]
[361830592,1747824638571,-677.27828535,0.00019279,2]
[361830594,1747824638582,-677.27828535,0.00019555,2]
[361830596,1747824638592,-628.53843,0.00019599,2]
[361830598,1747824638602,-211.74725208,0.00019726,3]
[361830600,1747824638611,-677.27828535,0.00019831,2]
[361830602,1747824638621,-760.05847036,0.000199,2]
[361830604,1747824638631,-500.0,0.00019999,2]
[361830606,1747824638641,-500.0,0.00019999,2]
[361830608,1747824638650,-500.0,0.00019999,2]
[361830610,1747824638660,-435.02536932,0.00019999,2]
[361830612,1747824638670,-648.70110026,0.00019999,2]
[361830614,1747824638681,-61755.45160426,0.0002,2]
[361830615,1747824638691,-10000.0,0.0002,2]
[361830616,1747824638704,-43010.09266822,0.0002,2]
[361830617,1747824638714,-151.0,0.0002,2]
[361830618,1747824638724,-151.0,0.0002,2]
[361830619,1747824638734,-282.051824,0.0002,2]
[361830620,1747824638745,-151.0,0.0002,2]
[361830621,1747824638755,-151.0,0.0002,2]
[361830622,1747824638765,-151.0,0.0002,2]
[361830623,1747824638776,-151.0,0.0002,2]
[361830624,1747824638786,-151.0,0.0002,2]
[361830625,1747824638797,-151.0,0.0002,2]
[361830626,1747824638806,-151.0,0.0002,2]
[361830627,1747824638816,-151.0,0.0002,2]
[361830628,1747824638826,-151.654972,0.0002,2]
[361830629,1747824638836,-151.0,0.0002,2]
[361830630,1747824638845,-151.51696,0.0002,2]
[361830631,1747824638855,-151.554944,0.0002,2]
[361830632,1747824638864,-151.0,0.0002,2]
[361830633,1747824638874,-151.0,0.0002,2]
[361830634,1747824638886,-181.591225,0.0002,2]
[361830635,1747824638897,-151.0,0.0002,2]
[361830636,1747824638907,-151.0,0.0002,2]
[361830637,1747824638917,-151.0,0.0002,2]
[361830638,1747824638928,-256.070381,0.0002,2]
[361830640,1747824638938,-151.0,0.0002,2]
[361830642,1747824638948,-151.0,0.0002,2]
[361830644,1747824638957,-151.0,0.0002,2]
[361830646,1747824638967,-151.0,0.0002,2]
[361830648,1747824638977,-151.0,0.0002,2]
[361830650,1747824638986,-151.0,0.0002,2]
[361830652,1747824638996,-151.0,0.0002,2]
[361830654,1747824639009,-151.0,0.0002,2]
[361830656,1747824639019,-151.0,0.0002,2]
[361830658,1747824639028,-151.0,0.0002,2]
[361830660,1747824639037,-202.595106,0.0002,2]
[361830662,1747824639047,-202.595106,0.0002,2]
[361830664,1747824639056,-150.0,0.0002,2]
[361830666,1747824639066,-151.0,0.0002,2]
[361830668,1747824639077,-263.859255,0.0002,2]
[361830670,1747824639087,-151.0,0.0002,2]
[361830672,1747824639097,-151.0,0.0002,2]
[361830674,1747824639107,-263.859255,0.0002,2]
[361830676,1747824639118,-151.0,0.0002,2]
[361830678,1747824639128,-151.0,0.0002,2]
[361830680,1747824639138,-151.0,0.0002,2]
[361830682,1747824639148,-151.0,0.0002,2]
[361830684,1747824639159,-151.0,0.0002,2]
[361830686,1747824639170,-151.0,0.0002,2]
[361830688,1747824639179,-151.0,0.0002,2]
[361830690,1747824639191,-151.0,0.0002,2]
[361830693,1747824639201,-151.0,0.0002,2]
[361830695,1747824639210,-151.0,0.0002,2]
[361830697,1747824639220,-151.0,0.0002,2]
[361830699,1747824639229,-190.11616,0.0002,2]
[361830701,1747824639239,-190.11616,0.0002,2]
[361830703,1747824639248,-151.0,0.0002,2]
[361830705,1747824639258,-151.0,0.0002,2]
[361830707,1747824639268,-151.0,0.0002,2]
[361830709,1747824639278,-151.0,0.0002,2]
[361830711,1747824639288,-151.0,0.0002,2]
[361830713,1747824639299,-167.64269047,0.0002,2]
[361830715,1747824639308,-500.0,0.0002,2]
[361830717,1747824639318,-157.85,0.0002,2]
[361830719,1747824639327,-173.068229,0.0002,2]
[361830721,1747824639337,-151.0,0.0002,2]
[361830723,1747824639346,-173.068229,0.0002,2]
[361830725,1747824639356,-151.0,0.0002,2]
[361830727,1747824639366,-153.159294,0.0002,2]
[361830729,1747824639375,-500.0,0.00020027,2]
[361830731,1747824639385,-500.0,0.00020055,2]
[361830733,1747824639395,-500.0,0.00020082,2]
[361830735,1747824639404,-677.27828535,0.00020107,2]
[361830737,1747824639413,-500.0,0.0002011,2]
[361830739,1747824639423,-500.0,0.00020137,2]
[361830741,1747824639432,-500.0,0.00020164,2]
[361830742,1747824639441,-294.859741,0.00020187,2]
[361830744,1747824639452,-500.0,0.00020192,2]
[361830746,1747824639462,-500.0,0.00020219,2]
[361830748,1747824639471,-500.0,0.00020247,2]
[361830750,1747824639481,-500.0,0.00020274,2]
[361830752,1747824639490,-500.0,0.00020301,2]
[361830754,1747824639499,-500.0,0.00020329,2]
[361830756,1747824639509,-500.0,0.00020356,2]
[361830758,1747824639519,-677.27828535,0.00020383,3]
[361830760,1747824639528,-267.32898839,0.00020384,2]
[361830762,1747824639538,-677.27828535,0.00020659,3]
[361830764,1747824639548,-150.0,0.00020741,2]
[361830766,1747824639558,-677.27828535,0.00020934,4]
[361830768,1747824639569,-2003.19435949,0.00021,2]
[361830770,1747824639578,-150.0,0.00021,2]
[361830772,1747824639588,-760.05847036,0.00021065,2]
[361830774,1747824639600,-500.0,0.00021164,2]
[361830776,1747824639611,-151.49577982,0.00021164,2]
[361830778,1747824639621,-151.0,0.00021164,2]
[361830780,1747824639631,-151.0,0.00021164,2]
[361830782,1747824639640,-169.78580715,0.00021164,2]
[361830784,1747824639650,-151.0,0.00021164,2]
[361830786,1747824639660,-151.0,0.00021164,2]
[361830788,1747824639671,-677.27828535,0.0002121,4]
[361830790,1747824639680,-207.4,0.00021265,2]
[361830792,1747824639690,-151.0,0.00021265,2]
[361830809,1747824639840,-677.27828535,0.00021486,5]
[361830811,1747824639852,-677.27828535,0.00021762,5]
[361830813,1747824639863,-201.82879796,0.0002178,2]
[361830815,1747824639873,-150.0,0.000219,30]
[361830817,1747824639883,-430.0,0.00021917,2]
[361830819,1747824639893,-200.0,0.00021917,2]
[361830821,1747824639902,-434.3897666,0.00021917,2]
[361830823,1747824639912,-430.0,0.00021917,2]
[361830825,1747824639922,-430.0,0.00021917,2]
[361830827,1747824639932,-151.0,0.00021917,2]
[361830829,1747824639942,-151.0,0.00021917,2]
[361830831,1747824639952,-256.334514,0.00021917,2]
[361830833,1747824639962,-152.577471,0.00021917,2]
[361830835,1747824639971,-151.0,0.00021917,2]
[361830837,1747824639982,-430.0,0.00021917,2]
[361830839,1747824639992,-202.595106,0.00021917,2]
[361830841,1747824640002,-202.595106,0.00021917,2]
[361830843,1747824640012,-430.0,0.00021917,2]
[361830845,1747824640022,-399.27530746,0.00021917,2]
[361830847,1747824640032,-151.0,0.00021917,2]
[361830849,1747824640041,-263.859255,0.00021917,2]
[361830851,1747824640051,-151.0,0.00021917,2]
[361830853,1747824640061,-151.0,0.00021917,2]
[361830855,1747824640070,-263.859255,0.00021917,2]
[361830857,1747824640080,-151.0,0.00021917,2]
[361830859,1747824640089,-151.0,0.00021917,2]
[361830862,1747824640100,-151.0,0.00021917,2]
[361830864,1747824640110,-293.460006,0.00021917,2]
[361830865,1747824640119,-151.0,0.00021917,2]
[361830867,1747824640129,-151.0,0.00021917,2]
[361830869,1747824640139,-151.0,0.00021917,2]
[361830871,1747824640149,-151.0,0.00021917,2]
[361830873,1747824640159,-445.7419247,0.00021917,2]
[361830875,1747824640168,-421.30642643,0.00021917,2]
[361830877,1747824640178,-151.0,0.00021917,2]
[361830879,1747824640187,-430.0,0.00021917,2]
[361830881,1747824640197,-430.0,0.00021917,2]
[361830883,1747824640208,-430.0,0.00021917,2]
[361830884,1747824640217,-171.40336436,0.00021917,2]
[361830886,1747824640227,-190.11616,0.00021917,2]
[361830888,1747824640236,-190.11616,0.00021917,2]
[361830889,1747824640246,-657.47,0.00021917,2]
[361830890,1747824640256,-152.99136,0.00021917,2]
[361830891,1747824640265,-543.19,0.00021917,2]
[361830892,1747824640275,-151.0,0.00021917,2]
[361830893,1747824640284,-151.0,0.00021917,2]
[361830894,1747824640295,-151.0,0.00021917,2]
[361830895,1747824640304,-151.0,0.00021917,2]
[361830896,1747824640314,-173.068229,0.00021917,2]
[361830897,1747824640323,-151.0,0.00021917,2]
[361830898,1747824640333,-173.068229,0.00021917,2]
[361830899,1747824640343,-151.0,0.00021917,2]
[361830900,1747824640352,-330.04268433,0.00021917,2]
[361830901,1747824640362,-409.73367543,0.00021917,2]
[361830902,1747824640371,-157.707775,0.00021918,2]
[361830903,1747824640381,-157.707775,0.00021918,2]
[361830904,1747824640391,-157.707775,0.00021918,2]
[361830905,1747824640401,-157.707775,0.00021918,2]
[361830906,1747824640410,-151.0,0.00021918,7]
[361830907,1747824640420,-151.0,0.00021918,7]
[361830908,1747824640429,-151.0,0.00021918,7]
[361830909,1747824640439,-151.0,0.00021918,7]
[361830910,1747824640448,-166.464119,0.00021918,7]
[361830911,1747824640458,-152.280771,0.00021918,7]
[361830912,1747824640468,-151.384668,0.00021918,7]
[361830913,1747824640478,-151.0,0.00021918,7]
[361830914,1747824640487,-151.0,0.00021918,7]
[361830915,1747824640497,-151.0,0.00021918,7]
[361830916,1747824640507,-151.0,0.00021918,7]
[361830917,1747824640516,-500.0,0.00021918,2]
[361830918,1747824640526,-500.0,0.00021918,2]
[361830919,1747824640536,-500.0,0.00021918,2]
[361830920,1747824640546,-500.0,0.00021918,2]
[361830921,1747824640556,-500.0,0.00021918,2]
[361830922,1747824640567,-511.04649163,0.00021918,2]
[361830923,1747824640577,-500.0,0.00021918,2]
[361830924,1747824640587,-500.0,0.00021918,2]
[361830925,1747824640596,-500.0,0.00021918,2]
[361830926,1747824640606,-500.0,0.00021918,2]
[361830927,1747824640615,-500.0,0.00021918,2]
[361830928,1747824640625,-200.0,0.00021918,2]
[361830929,1747824640635,-500.0,0.00021918,2]
[361830930,1747824640644,-500.0,0.00021918,2]
[361830931,1747824640654,-500.0,0.00021918,2]
[361830932,1747824640664,-500.0,0.00021918,2]
[361830933,1747824640674,-233.85260913,0.00021918,7]